fUST/lending_fUST_20250727
["ID","MTS","AMOUNT","RATE_DAILY","PERIOD"]
[375183221,1753581045657,-460.0,0.00019243,2]
[375183223,1753581045666,-460.0,0.00019243,2]
[375183225,1753581045675,-407.30119565,0.00019243,2]
[375183227,1753581045684,-465.92546252,0.00019243,2]
[375183229,1753581045694,-500.33723967,0.00019273,2]
[375183231,1753581045703,-291.72408213,0.00019273,2]
[375183233,1753581045713,-500.83666161,0.00019273,2]
[375183234,1753581045723,-501.8648355,0.00019273,2]
[375183236,1753581045732,-500.39498105,0.00019273,2]
[375183238,1753581045742,-500.0,0.00019273,2]
[375183240,1753581045752,-500.6679518,0.00019273,2]
[375183243,1753581045761,-443.16655307,0.00019273,2]
[375183244,1753581045770,-500.20550415,0.00019273,2]
[375183246,1753581045782,-500.0,0.00019273,2]
[375183249,1753581045792,-158.37121569,0.00019273,2]
[375183250,1753581045802,-500.0,0.00019273,2]
[375183252,1753581045812,-500.0,0.00019273,2]
[375183254,1753581045822,-501.60499278,0.00019273,2]
[375183257,1753581045832,-500.26382855,0.00019273,2]
[375183258,1753581045842,-161.23235,0.00019273,2]
[375183260,1753581045851,-500.0,0.00019273,2]
[375183262,1753581045861,-501.25117299,0.00019273,2]
[375183264,1753581045871,-501.53444438,0.00019273,2]
[375183266,1753581045880,-386.69749685,0.00019273,2]
[375183268,1753581045890,-620.81329578,0.00019273,2]
[375183270,1753581045899,-501.09146775,0.00019273,2]
[375183272,1753581045909,-500.0,0.00019273,2]
[375183274,1753581045919,-500.89763046,0.00019273,2]
[375183276,1753581045928,-500.0,0.00019273,2]
[375183278,1753581045937,-500.0,0.00019273,2]
[375183280,1753581045947,-500.57595872,0.00019273,2]
[375183282,1753581045956,-501.90688892,0.00019273,2]
[375183284,1753581045965,-500.0,0.00019273,2]
[375183287,1753581045975,-500.0,0.00019273,2]
[375183289,1753581045984,-151.0506457,0.00019273,2]
[375183291,1753581045994,-500.0,0.00019273,2]
[375183293,1753581046005,-500.0,0.00019273,2]
[375183295,1753581046014,-500.0,0.00019273,2]
[375183297,1753581046023,-500.0,0.00019273,2]
[375183299,1753581046033,-500.0,0.00019273,2]
[375183301,1753581046042,-415.90332342,0.00019273,2]
[375183303,1753581046051,-501.09708674,0.00019273,2]
[375183305,1753581046060,-500.0,0.00019273,2]
[375183307,1753581046070,-501.1427899,0.00019273,2]
[375183309,1753581046079,-500.0,0.00019273,2]
[375183311,1753581046088,-500.0,0.00019273,2]
[375183313,1753581046098,-157.60390773,0.00019273,2]
[375183315,1753581046107,-515.04012292,0.00019273,2]
[375183317,1753581046117,-500.0,0.00019273,2]
[375183319,1753581046126,-500.0,0.00019273,2]
[375183321,1753581046136,-503.10716674,0.00019273,2]
[375183323,1753581046145,-508.56017954,0.00019273,2]
[375183325,1753581046154,-384.75091375,0.00019273,2]
[375183327,1753581046164,-500.0,0.00019273,2]
[375183329,1753581046173,-500.0,0.00019273,2]
[375183332,1753581046184,-500.0,0.00019273,2]
[375183333,1753581046194,-3699.9048272,0.00019295,2]
[375183336,1753581046204,-151.0,0.000193,2]
[375183338,1753581046213,-151.0,0.000193,2]
[375183339,1753581046223,-500.0,0.00019347,2]
[375183341,1753581046233,-500.0,0.00019355,2]
[375183344,1753581046243,-4064.15,0.00019355,2]
[375183346,1753581046253,-151.0,0.000194,2]
[375183347,1753581046262,-151.0,0.000194,2]
[375183350,1753581046271,-151.0,0.000194,2]
[375183351,1753581046281,-151.0,0.000194,2]
[375183354,1753581046290,-3699.9048272,0.00019402,2]
[375183356,1753581046300,-151.0,0.000195,2]
[375183357,1753581046310,-151.0,0.000195,2]
[375183359,1753581046319,-460.0,0.00019502,2]
[375183361,1753581046329,-461.98427731,0.00019502,2]
[375183363,1753581046339,-314.78414656,0.00019502,2]
[375183376,1753581046457,-461.28254996,0.00019502,2]
[375183378,1753581046468,-461.0939293,0.00019502,2]
[375183380,1753581046478,-1000.0,0.00019502,2]
[375183383,1753581046489,-366.28970404,0.00019502,2]
[375183385,1753581046498,-460.0,0.00019502,2]
[375183387,1753581046508,-460.0,0.00019502,2]
[375183389,1753581046518,-460.0,0.00019502,2]
[375183391,1753581046527,-393.74983041,0.00019502,2]
[375183393,1753581046537,-460.0,0.00019502,2]
[375183395,1753581046546,-461.79847063,0.00019502,2]
[375183397,1753581046555,-460.0,0.00019502,2]
[375183398,1753581046564,-460.0,0.00019502,2]
[375183400,1753581046574,-460.0,0.00019502,2]
[375183403,1753581046584,-460.0,0.00019502,2]
[375183405,1753581046596,-460.0,0.00019502,2]
[375183406,1753581046606,-460.0,0.00019502,2]
[375183408,1753581046615,-460.0,0.00019502,2]
[375183410,1753581046624,-461.62230653,0.00019502,2]
[375183412,1753581046634,-460.54691563,0.00019502,2]
[375183414,1753581046643,-460.0,0.00019502,2]
[375183416,1753581046652,-460.0,0.00019502,2]
[375183418,1753581046662,-463.30158589,0.00019502,2]
[375183420,1753581046672,-460.0,0.00019502,2]
[375183422,1753581046682,-460.0,0.00019502,2]
[375183424,1753581046691,-460.0,0.00019502,2]
[375183426,1753581046702,-460.0,0.00019502,2]
[375183428,1753581046711,-461.59216414,0.00019502,2]
[375183430,1753581046721,-460.0,0.00019502,2]
[375183432,1753581046730,-460.0,0.00019502,2]
[375183434,1753581046740,-440.4777102,0.00019502,2]
[375183436,1753581046749,-468.4426561,0.00019502,2]
[375183438,1753581046758,-460.0,0.00019502,2]
[375183441,1753581046777,-464.70292781,0.00019502,2]
[375183443,1753581046790,-461.71048538,0.00019502,2]
[375183445,1753581046800,-463.86800117,0.00019502,2]
[375183448,1753581046811,-461.44394563,0.00019502,2]
[375183450,1753581046821,-460.0,0.00019502,2]
[375183452,1753581046831,-461.58471971,0.00019502,2]
[375183454,1753581046840,-462.00601918,0.00019502,2]
[375183456,1753581046853,-461.35429982,0.00019502,2]
[375183458,1753581046863,-460.0,0.00019502,2]
[375183460,1753581046872,-460.0,0.00019502,2]
[375183462,1753581046882,-460.0,0.00019502,2]
[375183464,1753581046892,-460.0,0.00019502,2]
[375183466,1753581046903,-460.0,0.00019502,2]
[375183468,1753581046913,-460.0,0.00019502,2]
[375183470,1753581046922,-460.0,0.00019502,2]
[375183472,1753581046932,-460.0,0.00019502,2]
[375183474,1753581046942,-460.0,0.00019502,2]
[375183476,1753581046951,-461.83194965,0.00019502,2]
[375183478,1753581046961,-460.0,0.00019502,2]
[375183480,1753581046971,-460.0,0.00019502,2]
[375183482,1753581046981,-460.0,0.00019502,2]
[375183484,1753581046993,-245.75456804,0.00019502,2]
[375183486,1753581047003,-460.0,0.00019502,2]
[375183488,1753581047014,-463.59858635,0.00019502,2]
[375183490,1753581047024,-460.0,0.00019502,2]
[375183492,1753581047033,-460.0,0.00019502,2]
[375183494,1753581047044,-460.0,0.00019502,2]
[375183496,1753581047054,-460.0,0.00019502,2]
[375183498,1753581047064,-460.0,0.00019502,2]
[375183500,1753581047075,-460.0,0.00019502,2]
[375183502,1753581047085,-465.02549937,0.00019502,2]
[375183504,1753581047095,-460.0,0.00019502,2]
[375183507,1753581047104,-466.15288213,0.00019502,2]
[375183509,1753581047114,-461.95565403,0.00019502,2]
[375183511,1753581047123,-460.0,0.00019502,2]
[375183513,1753581047133,-398.16082017,0.00019502,2]
[375183515,1753581047142,-460.0,0.00019502,2]
[375183517,1753581047152,-460.0,0.00019502,2]
[375183519,1753581047161,-460.0,0.00019502,2]
[375183521,1753581047171,-460.0,0.00019502,2]
[375183523,1753581047182,-460.0,0.00019502,2]
[375183525,1753581047193,-218.91464379,0.00019502,2]
[375183527,1753581047203,-371.06898658,0.00019502,2]
[375183529,1753581047213,-460.0,0.00019502,2]
[375183531,1753581047223,-460.0,0.00019502,2]
[375183533,1753581047233,-460.0,0.00019502,2]
[375183535,1753581047242,-460.0,0.00019502,2]
[375183537,1753581047252,-460.0,0.00019502,2]
[375183539,1753581047262,-463.41559967,0.00019502,2]
[375183541,1753581047273,-460.0,0.00019502,2]
[375183543,1753581047282,-460.0,0.00019502,2]
[375183545,1753581047291,-460.0,0.00019502,2]
[375183547,1753581047301,-460.0,0.00019502,2]
[375183549,1753581047310,-460.0,0.00019502,2]
[375183551,1753581047319,-465.1159297,0.00019502,2]
[375183553,1753581047329,-460.0,0.00019502,2]
[375183555,1753581047339,-460.0,0.00019502,2]
[375183557,1753581047350,-461.82588442,0.00019502,2]
[375183559,1753581047360,-460.0,0.00019502,2]
[375183561,1753581047369,-460.0,0.00019502,2]
[375183563,1753581047379,-460.0,0.00019502,2]
[375183565,1753581047392,-460.0,0.00019502,2]
[375183567,1753581047402,-374.64887966,0.00019502,2]
[375183569,1753581047412,-460.0,0.00019502,2]
[375183571,1753581047425,-460.0,0.00019502,2]
[375183573,1753581047434,-460.0,0.00019502,2]
[375183575,1753581047444,-460.0,0.00019502,2]
[375183578,1753581047454,-460.0,0.00019502,2]
[375183580,1753581047465,-460.0,0.00019502,2]
[375183582,1753581047477,-486.57,0.00019502,2]
[375183584,1753581047488,-473.24765745,0.00019502,2]
[375183586,1753581047498,-462.00124453,0.00019502,2]
[375183588,1753581047508,-460.0,0.00019502,2]
[375183590,1753581047518,-460.0,0.00019502,2]
[375183591,1753581047527,-460.0,0.00019502,2]
[375183594,1753581047537,-461.83267202,0.00019502,2]
[375183595,1753581047546,-460.0,0.00019502,2]
[375183597,1753581047556,-463.45586272,0.00019502,2]
[375183599,1753581047566,-462.89009495,0.00019502,2]
[375183602,1753581047578,-460.0,0.00019502,2]
[375183604,1753581047588,-460.0,0.00019502,2]
[375183606,1753581047599,-463.43465367,0.00019502,2]
[375183608,1753581047608,-460.0,0.00019502,2]
[375183610,1753581047617,-460.0,0.00019502,2]
[375183612,1753581047627,-460.0,0.00019502,2]
[375183614,1753581047636,-460.0,0.00019502,2]
[375183616,1753581047646,-460.0,0.00019502,2]
[375183618,1753581047656,-460.0,0.00019502,2]
[375183619,1753581047666,-461.42012413,0.00019502,2]
[375183621,1753581047676,-460.0,0.00019502,2]
[375183623,1753581047686,-464.31200862,0.00019502,2]
[375183625,1753581047696,-460.0,0.00019502,2]
[375183628,1753581047706,-460.0,0.00019502,2]
[375183629,1753581047715,-460.0,0.00019502,2]
[375183632,1753581047726,-460.0,0.00019502,2]
[375183633,1753581047736,-460.0,0.00019502,2]
[375183635,1753581047745,-460.0,0.00019502,2]
[375183637,1753581047755,-462.65115373,0.00019502,2]
[375183640,1753581047765,-460.0,0.00019502,2]
[375183642,1753581047775,-460.0,0.00019502,2]
[375183643,1753581047785,-460.0,0.00019502,2]
[375183646,1753581047795,-460.0,0.00019502,2]
[375183647,1753581047804,-460.0,0.00019502,2]
[375183650,1753581047814,-463.5,0.00019502,2]
[375183652,1753581047824,-460.0,0.00019502,2]
[375183654,1753581047834,-460.0,0.00019502,2]
[375183656,1753581047848,-460.0,0.00019502,2]
[375183658,1753581047858,-460.0,0.00019502,2]
[375183660,1753581047867,-460.0,0.00019502,2]
[375183662,1753581047878,-460.0,0.00019502,2]
[375183664,1753581047888,-460.0,0.00019502,2]
[375183666,1753581047898,-462.48030065,0.00019502,2]
[375183668,1753581047908,-460.0,0.00019502,2]
[375183669,1753581047918,-462.93805048,0.00019502,2]
[375183672,1753581047928,-460.0,0.00019502,2]
[375183673,1753581047938,-460.0,0.00019502,2]
[375183675,1753581047947,-460.0,0.00019502,2]
[375183678,1753581047957,-460.0,0.00019502,2]
[375183680,1753581047967,-249.60016198,0.00019502,2]
[375183681,1753581047977,-460.0,0.00019502,2]
[375183684,1753581047987,-460.0,0.00019502,2]
[375183686,1753581047997,-460.0,0.00019502,2]
[375183688,1753581048006,-460.0,0.00019502,2]
[375183690,1753581048016,-460.0,0.00019502,2]
[375183692,1753581048025,-460.0,0.00019502,2]
[375183694,1753581048035,-460.0,0.00019502,2]
[375183696,1753581048045,-460.0,0.00019502,2]
[375183698,1753581048054,-460.0,0.00019502,2]
[375183699,1753581048064,-460.0,0.00019502,2]
[375183702,1753581048075,-460.0,0.00019502,2]
[375183704,1753581048084,-460.0,0.00019502,2]
[375183706,1753581048095,-251.56756572,0.00019502,2]
[375183708,1753581048105,-460.0,0.00019502,2]
[375183710,1753581048114,-460.0,0.00019502,2]
[375183712,1753581048124,-460.0,0.00019502,2]
[375183714,1753581048134,-460.0,0.00019502,2]
[375183716,1753581048143,-460.0,0.00019502,2]
[375183718,1753581048153,-512.88,0.00019502,2]
[375183720,1753581048163,-460.0,0.00019502,2]
[375183722,1753581048173,-460.0,0.00019502,2]
[375183724,1753581048182,-460.0,0.00019502,2]
[375183726,1753581048192,-460.0,0.00019502,2]
[375183728,1753581048201,-460.0,0.00019502,2]
[375183730,1753581048211,-509.004571,0.00019502,2]
[375183732,1753581048220,-460.0,0.00019502,2]
[375183733,1753581048230,-460.0,0.00019502,2]
[375183735,1753581048240,-460.0,0.00019502,2]
[375183737,1753581048249,-460.0,0.00019502,2]
[375183739,1753581048259,-461.24585094,0.00019502,2]
[375183742,1753581048269,-460.0,0.00019502,2]
[375183744,1753581048279,-460.0,0.00019502,2]
[375183746,1753581048288,-460.0,0.00019502,2]
[375183748,1753581048298,-460.0,0.00019502,2]
[375183750,1753581048307,-460.0,0.00019502,2]
[375183752,1753581048317,-460.0,0.00019502,2]
[375183753,1753581048327,-460.0,0.00019502,2]
[375183756,1753581048336,-461.68595311,0.00019502,2]
[375183757,1753581048346,-1072.02,0.00019502,2]
[375183759,1753581048356,-460.0,0.00019502,2]
[375183761,1753581048366,-460.0,0.00019502,2]
[375183764,1753581048376,-460.0,0.00019502,2]
[375183765,1753581048386,-460.0,0.00019502,2]
[375183767,1753581048396,-460.0,0.00019502,2]
[375183769,1753581048405,-460.0,0.00019502,2]
[375183771,1753581048419,-460.0,0.00019502,2]
[375183773,1753581048429,-460.0,0.00019502,2]
[375183775,1753581048439,-460.0,0.00019502,2]
[375183777,1753581048448,-461.02564988,0.00019502,2]
[375183779,1753581048459,-460.0,0.00019502,2]
[375183781,1753581048468,-461.1655562,0.00019502,2]
[375183783,1753581048478,-542.2148921,0.00019502,2]
[375183785,1753581048487,-460.0,0.00019502,2]
[375183787,1753581048498,-439.70540444,0.00019502,2]
[375183789,1753581048508,-468.06862517,0.00019502,2]
[375183791,1753581048518,-462.48878922,0.00019502,2]
[375183793,1753581048528,-460.0,0.00019502,2]
[375183795,1753581048538,-460.0,0.00019502,2]
[375183797,1753581048548,-460.0,0.00019502,2]
[375183799,1753581048557,-460.0,0.00019502,2]
[375183801,1753581048567,-462.16758489,0.00019502,2]
[375183803,1753581048577,-2025.96,0.00019502,2]
[375183806,1753581048587,-460.0,0.00019502,2]
[375183807,1753581048597,-460.0,0.00019502,2]
[375183809,1753581048606,-460.0,0.00019502,2]
[375183811,1753581048618,-460.0,0.00019502,2]
[375183814,1753581048628,-1006.77,0.00019502,2]
[375183816,1753581048638,-461.4123462,0.00019502,2]
[375183817,1753581048648,-460.0,0.00019502,2]
[375183819,1753581048658,-460.0,0.00019502,2]
[375183821,1753581048668,-460.0,0.00019502,2]
[375183824,1753581048679,-460.0,0.00019502,2]
[375183825,1753581048689,-460.0,0.00019502,2]
[375183828,1753581048699,-461.34213772,0.00019502,2]
[375183829,1753581048709,-460.0,0.00019502,2]
[375183831,1753581048719,-460.0,0.00019502,2]
[375183833,1753581048729,-460.0,0.00019502,2]
[375183835,1753581048739,-460.0,0.00019502,2]
[375183837,1753581048749,-460.0,0.00019502,2]
[375183839,1753581048761,-674.58,0.00019502,2]
[375183841,1753581048771,-460.0,0.00019502,2]
[375183843,1753581048784,-460.0,0.00019502,2]
[375183845,1753581048794,-460.81373322,0.00019502,2]
[375183847,1753581048805,-756.57,0.00019502,2]
[375183849,1753581048814,-365.33736334,0.00019502,2]
[375183851,1753581048824,-461.71043311,0.00019502,2]
[375183853,1753581048833,-460.0,0.00019502,2]
[375183855,1753581048844,-274.3471337,0.00019502,2]
[375183857,1753581048854,-460.0,0.00019502,2]
[375183859,1753581048864,-503.51076361,0.00019502,2]
[375183861,1753581048873,-460.0,0.00019502,2]
[375183862,1753581048883,-460.0,0.00019502,2]
[375183863,1753581048892,-460.0,0.00019502,2]
[375183864,1753581048902,-460.0,0.00019502,2]
[375183865,1753581048912,-471.46,0.00019502,2]
[375183866,1753581048921,-460.0,0.00019502,2]
[375183867,1753581048930,-460.0,0.00019502,2]
[375183868,1753581048939,-460.0,0.00019502,2]
[375183869,1753581048948,-460.0,0.00019502,2]
[375183870,1753581048958,-463.13837989,0.00019502,2]
[375183871,1753581048967,-460.0,0.00019502,2]
[375183872,1753581048976,-1620.18,0.00019502,2]
[375183873,1753581048986,-461.55435495,0.00019502,2]
[375183874,1753581048995,-460.0,0.00019502,2]
[375183875,1753581049005,-460.0,0.00019502,2]
[375183876,1753581049015,-460.0,0.00019502,2]
[375183877,1753581049024,-460.0,0.00019502,2]
[375183879,1753581049033,-460.0,0.00019502,2]
[375183881,1753581049043,-460.0,0.00019502,2]
[375183883,1753581049053,-466.1229476,0.00019502,2]
[375183885,1753581049062,-460.0,0.00019502,2]
[375183887,1753581049072,-460.0,0.00019502,2]
[375183889,1753581049081,-460.0,0.00019502,2]
[375183891,1753581049091,-462.19552688,0.00019502,2]
[375183893,1753581049101,-1840.08,0.00019502,2]
[375183895,1753581049111,-460.0,0.00019502,2]
[375183897,1753581049120,-460.0,0.00019502,2]
[375183899,1753581049131,-381.2250324,0.00019502,2]
[375183901,1753581049141,-354.85929887,0.00019502,2]
[375183903,1753581049151,-460.0,0.00019502,2]
[375183905,1753581049160,-460.0,0.00019502,2]
[375183907,1753581049175,-460.0,0.00019502,2]
[375183909,1753581049184,-460.0,0.00019502,2]
[375183911,1753581049194,-153.79507678,0.00019502,2]
[375183913,1753581049205,-460.0,0.00019502,2]
[375183915,1753581049214,-390.62877028,0.00019502,2]
[375183917,1753581049224,-461.81511651,0.00019502,2]
[375183919,1753581049233,-515.87668966,0.00019502,2]
[375183921,1753581049243,-460.0,0.00019502,2]
[375183936,1753581049379,-460.0,0.00019502,2]
[375183939,1753581049389,-462.60076232,0.00019502,2]
[375183940,1753581049399,-460.0,0.00019502,2]
[375183942,1753581049408,-460.0,0.00019502,2]
[375183945,1753581049422,-461.05656197,0.00019502,2]
[375183946,1753581049432,-460.0,0.00019502,2]
[375183948,1753581049441,-460.0,0.00019502,2]
[375183950,1753581049451,-460.0,0.00019502,2]
[375183952,1753581049461,-460.0,0.00019502,2]
[375183954,1753581049471,-460.0,0.00019502,2]
[375183956,1753581049480,-1601.61,0.00019502,2]
[375183958,1753581049489,-460.0,0.00019502,2]
[375183960,1753581049501,-460.0,0.00019502,2]
[375183962,1753581049511,-460.0,0.00019502,2]
[375183964,1753581049521,-460.0,0.00019502,2]
[375183966,1753581049531,-460.0,0.00019502,2]
[375183968,1753581049540,-460.0,0.00019502,2]
[375183970,1753581049549,-460.0,0.00019502,2]
[375183972,1753581049559,-460.0,0.00019502,2]
[375183974,1753581049568,-460.0,0.00019502,2]
[375183976,1753581049578,-460.0,0.00019502,2]
[375183978,1753581049587,-469.06070563,0.00019502,2]
[375183980,1753581049597,-460.0,0.00019502,2]
[375183982,1753581049606,-460.0,0.00019502,2]
[375183984,1753581049616,-460.0,0.00019502,2]
[375183986,1753581049625,-460.0,0.00019502,2]
[375183988,1753581049635,-663.29,0.00019502,2]
[375183990,1753581049645,-461.91143922,0.00019502,2]
[375183992,1753581049655,-460.0,0.00019502,2]
[375183994,1753581049670,-522.23,0.00019502,2]
[375183996,1753581049680,-460.0,0.00019502,2]
[375183998,1753581049690,-1432.36,0.00019502,2]
[375184000,1753581049700,-460.0,0.00019502,2]
[375184002,1753581049710,-460.0,0.00019502,2]
[375184004,1753581049719,-460.0,0.00019502,2]
[375184006,1753581049729,-492.66700726,0.00019502,2]
[375184008,1753581049739,-460.0,0.00019502,2]
[375184010,1753581049750,-460.0,0.00019502,2]
[375184012,1753581049760,-460.0,0.00019502,2]
[375184015,1753581049770,-460.0,0.00019502,2]
[375184016,1753581049779,-460.0,0.00019502,2]
[375184018,1753581049789,-460.0,0.00019502,2]
[375184020,1753581049798,-460.0,0.00019502,2]
[375184022,1753581049808,-460.0,0.00019502,2]
[375184025,1753581049818,-504.49717951,0.00019502,2]
[375184026,1753581049828,-460.0,0.00019502,2]
[375184028,1753581049837,-460.0,0.00019502,2]
[375184030,1753581049847,-460.0,0.00019502,2]
[375184032,1753581049856,-5218.69,0.00019502,2]
[375184034,1753581049865,-461.58778769,0.00019502,2]
[375184036,1753581049874,-460.0,0.00019502,2]
[375184038,1753581049884,-217.8215707,0.00019502,2]
[375184040,1753581049893,-663.2,0.00019502,2]
[375184042,1753581049903,-460.0,0.00019502,2]
[375184044,1753581049913,-460.0,0.00019502,2]
[375184046,1753581049922,-460.0,0.00019502,2]
[375184048,1753581049933,-460.0,0.00019502,2]
[375184050,1753581049942,-460.0,0.00019502,2]
[375184052,1753581049952,-460.0,0.00019502,2]
[375184054,1753581049962,-507.63,0.00019502,2]
[375184056,1753581049971,-460.0,0.00019502,2]
[375184058,1753581049981,-461.28988139,0.00019502,2]
[375184060,1753581049990,-534.42079512,0.00019502,2]
[375184062,1753581050000,-460.0,0.00019502,2]
[375184064,1753581050009,-460.9663792,0.00019502,2]
[375184066,1753581050019,-460.0,0.00019502,2]
[375184068,1753581050029,-682.33,0.00019502,2]
[375184070,1753581050038,-460.0,0.00019502,2]
[375184072,1753581050048,-460.0,0.00019502,2]
[375184074,1753581050057,-460.91648951,0.00019502,2]
[375184076,1753581050067,-460.0,0.00019502,2]
[375184078,1753581050077,-460.0,0.00019502,2]
[375184080,1753581050086,-460.0,0.00019502,2]
[375184082,1753581050096,-460.0,0.00019502,2]
[375184084,1753581050105,-460.0,0.00019502,2]
[375184086,1753581050115,-460.0,0.00019502,2]
[375184088,1753581050124,-460.0,0.00019502,2]
[375184090,1753581050134,-460.0,0.00019504,2]
[375184092,1753581050143,-461.56076524,0.00019505,2]
[375184094,1753581050152,-461.55681134,0.00019505,2]
[375184096,1753581050161,-460.0,0.00019505,2]
[375184098,1753581050171,-239.94166997,0.00019505,2]
[375184100,1753581050180,-460.0,0.00019505,2]
[375184102,1753581050190,-460.0,0.00019505,2]
[375184104,1753581050199,-460.0,0.00019505,2]
[375184106,1753581050208,-460.0,0.00019505,2]
[375184108,1753581050217,-460.0,0.00019505,2]
[375184110,1753581050226,-460.0,0.00019505,2]
[375184112,1753581050236,-460.0,0.00019505,2]
[375184114,1753581050246,-460.0,0.00019505,2]
[375184116,1753581050255,-460.0,0.00019505,2]
[375184118,1753581050265,-460.0,0.00019505,2]
[375184120,1753581050274,-462.6926406,0.00019505,2]
[375184122,1753581050283,-460.0,0.00019505,2]
[375184124,1753581050293,-460.0,0.00019505,2]
[375184126,1753581050302,-460.0,0.00019505,2]
[375184128,1753581050312,-460.0,0.00019505,2]
[375184130,1753581050322,-460.0,0.00019505,2]
[375184132,1753581050331,-460.0,0.00019505,2]
[375184134,1753581050341,-460.0,0.00019505,2]
[375184136,1753581050352,-460.0,0.00019505,2]
[375184137,1753581050361,-460.0,0.00019505,2]
[375184139,1753581050371,-460.0,0.00019505,2]
[375184141,1753581050381,-460.0,0.00019505,2]
[375184144,1753581050391,-460.0,0.00019505,2]
[375184145,1753581050402,-460.0,0.00019505,2]
[375184147,1753581050414,-460.0,0.00019505,2]
[375184149,1753581050427,-460.0,0.00019505,2]
[375184151,1753581050438,-460.0,0.00019505,2]
[375184154,1753581050448,-460.0,0.00019505,2]
[375184156,1753581050461,-460.0,0.00019505,2]
[375184157,1753581050473,-460.0,0.00019505,2]
[375184159,1753581050484,-500.0,0.00019505,2]
[375184161,1753581050495,-460.0,0.00019505,2]
[375184163,1753581050505,-460.0,0.00019505,2]
[375184165,1753581050515,-460.0,0.00019505,2]
[375184167,1753581050525,-460.0,0.00019505,2]
[375184169,1753581050534,-460.0,0.00019505,2]
[375184171,1753581050544,-460.0,0.00019505,2]
[375184174,1753581050554,-4064.15,0.00019505,2]
[375184176,1753581050564,-460.0,0.00019505,2]
[375184178,1753581050574,-460.0,0.00019505,2]
[375184180,1753581050583,-460.0,0.00019505,2]
[375184181,1753581050592,-460.0,0.00019505,2]
[375184183,1753581050602,-460.0,0.00019505,2]
[375184185,1753581050612,-460.0,0.00019505,2]
[375184187,1753581050621,-461.11749112,0.00019506,2]
[375184189,1753581050632,-460.0,0.00019506,2]
[375184191,1753581050641,-462.56611854,0.00019506,2]
[375184193,1753581050650,-460.0,0.00019506,2]
[375184195,1753581050660,-461.80618003,0.00019506,2]
[375184197,1753581050669,-568.16373849,0.00019506,2]
[375184199,1753581050679,-460.0,0.00019506,2]
[375184201,1753581050688,-462.50018143,0.00019506,2]
[375184203,1753581050697,-463.78283879,0.00019506,2]
[375184205,1753581050707,-461.73254121,0.00019506,2]
[375184207,1753581050717,-460.0,0.00019506,2]
[375184209,1753581050726,-461.1678544,0.00019506,2]
[375184211,1753581050736,-462.87144779,0.00019506,2]
[375184213,1753581050745,-464.68809538,0.00019506,2]
[375184215,1753581050754,-327.01878279,0.00019506,2]
[375184217,1753581050764,-460.0,0.00019506,2]
[375184219,1753581050773,-463.49377967,0.00019506,2]
[375184221,1753581050782,-464.27906544,0.00019506,2]
[375184223,1753581050792,-460.0,0.00019506,2]
[375184225,1753581050801,-466.32344221,0.00019506,2]
[375184227,1753581050811,-462.40623283,0.00019506,2]
[375184229,1753581050820,-460.0,0.00019506,2]